fUST/lending_fUST_20250224
["ID","MTS","AMOUNT","RATE_DAILY","PERIOD"]
[354236761,1740358235125,-500.60354051,0.0001378,2]
[354236762,1740358235134,-500.0,0.0001378,2]
[354236763,1740358235143,-500.0,0.0001378,2]
[354236764,1740358235153,-500.0,0.0001378,2]
[354236765,1740358235162,-500.0,0.0001378,2]
[354236766,1740358235173,-500.0,0.0001378,2]
[354236767,1740358235183,-500.0,0.0001378,2]
[354236768,1740358235193,-500.0,0.0001378,2]
[354236769,1740358235203,-544.86,0.0001378,2]
[354236770,1740358235213,-500.0,0.0001378,2]
[354236771,1740358235222,-500.0,0.0001378,2]
[354236772,1740358235232,-500.0,0.0001378,2]
[354236773,1740358235242,-500.0,0.0001378,2]
[354236774,1740358235251,-500.0,0.0001378,2]
[354236775,1740358235261,-239.46,0.0001378,2]
[354236776,1740358235271,-500.0,0.0001378,2]
[354236777,1740358235280,-500.0,0.0001378,2]
[354236778,1740358235289,-500.0,0.0001378,2]
[354236779,1740358235298,-500.0,0.0001378,2]
[354236780,1740358235307,-1930.68,0.0001378,2]
[354236781,1740358235317,-550.71,0.0001378,2]
[354236782,1740358235327,-590.56,0.0001378,2]
[354236783,1740358235336,-500.0,0.0001378,2]
[354236784,1740358235346,-1212.17,0.0001378,2]
[354236785,1740358235355,-500.0,0.0001378,2]
[354236786,1740358235365,-500.0,0.0001378,2]
[354236787,1740358235374,-500.0,0.0001378,2]
[354236788,1740358235384,-500.0,0.0001378,2]
[354236789,1740358235393,-500.0,0.0001378,2]
[354236790,1740358235403,-805.55,0.0001378,2]
[354236791,1740358235412,-500.0,0.0001378,2]
[354236792,1740358235423,-500.0,0.0001378,2]
[354236793,1740358235432,-500.0,0.0001378,2]
[354236794,1740358235441,-500.0,0.0001378,2]
[354236795,1740358235450,-500.0,0.0001378,2]
[354236796,1740358235460,-500.0,0.0001378,2]
[354236797,1740358235469,-500.0,0.0001378,2]
[354236798,1740358235478,-500.0,0.0001378,2]
[354236799,1740358235487,-500.0,0.0001378,2]
[354236800,1740358235497,-447.55843662,0.0001378,2]
[354236801,1740358235506,-348.29,0.0001378,2]
[354236802,1740358235515,-500.0,0.0001378,2]
[354236803,1740358235524,-3089.22,0.0001378,2]
[354236804,1740358235534,-502.96062112,0.0001378,2]
[354236805,1740358235543,-350.56720576,0.00013788,2]
[354236806,1740358235552,-172.588092,0.00013791,2]
[354236807,1740358235561,-583.17267445,0.00013863,2]
[354236808,1740358235571,-517.99895411,0.00013863,2]
[354236809,1740358235580,-500.0,0.00013863,2]
[354236810,1740358235590,-500.0,0.00013863,2]
[354236811,1740358235599,-500.0,0.00013863,2]
[354236812,1740358235609,-633.92,0.00013863,2]
[354236813,1740358235618,-381.94097134,0.00013863,2]
[354236814,1740358235628,-500.0,0.00013863,2]
[354236815,1740358235637,-500.0,0.00013863,2]
[354236816,1740358235646,-500.0,0.00013863,2]
[354236817,1740358235656,-1930.68,0.00013863,2]
[354236818,1740358235667,-1212.17,0.00013863,2]
[354236819,1740358235677,-500.0,0.00013863,2]
[354236820,1740358235686,-500.0,0.00013863,2]
[354236821,1740358235695,-500.0,0.00013863,2]
[354236822,1740358235704,-500.0,0.00013863,2]
[354236823,1740358235713,-366.8354368,0.00013863,2]
[354236824,1740358235727,-133.1645632,0.00013863,2]
[354236825,1740358235736,-805.55,0.00013863,2]
[354236826,1740358235746,-500.0,0.00013863,2]
[354236827,1740358235756,-500.0,0.00013863,2]
[354236828,1740358235765,-500.0,0.00013863,2]
[354236829,1740358235775,-500.0,0.00013863,2]
[354236830,1740358235784,-500.0,0.00013863,2]
[354236831,1740358235794,-500.0,0.00013863,2]
[354236832,1740358235803,-500.0,0.00013863,2]
[354236833,1740358235812,-500.0,0.00013863,2]
[354236834,1740358235822,-3089.22,0.00013863,2]
[354236835,1740358235832,-500.0,0.00013891,2]
[354236836,1740358235841,-12924.89674434,0.00013892,2]
[354236837,1740358235850,-151.0,0.00013944,2]
[354236838,1740358235859,-500.0,0.00013944,2]
[354236839,1740358235869,-500.0,0.00013945,2]
[354236840,1740358235877,-500.0,0.00013945,2]
[354236841,1740358235886,-500.0,0.00013945,2]
[354236842,1740358235895,-500.0,0.00013945,2]
[354236843,1740358235905,-500.0,0.00013945,2]
[354236844,1740358235914,-500.0,0.00013945,2]
[354236845,1740358235924,-1930.68,0.00013945,2]
[354236846,1740358235934,-1212.17,0.00013945,2]
[354236847,1740358235952,-500.0,0.00013945,2]
[354236848,1740358235963,-500.0,0.00013945,2]
[354236849,1740358235972,-500.0,0.00013945,2]
[354236850,1740358235982,-500.0,0.00013945,2]
[354236851,1740358235991,-805.55,0.00013945,2]
[354236852,1740358236000,-500.0,0.00013945,2]
[354236853,1740358236009,-500.0,0.00013945,2]
[354236854,1740358236018,-500.0,0.00013945,2]
[354236855,1740358236027,-172.62189323,0.00013945,2]
[354236856,1740358236037,-500.0,0.00013945,2]
[354236857,1740358236047,-418.78815373,0.00013945,2]
[354236858,1740358236056,-500.0,0.00013945,2]
[354236859,1740358236065,-500.0,0.00013945,2]
[354236860,1740358236075,-3089.22,0.00013945,2]
[354236861,1740358236084,-396.0,0.00013975,2]
[354236862,1740358236093,-300.0,0.00014,4]
[354236863,1740358236103,-180.997,0.00014003,2]
[354236864,1740358236112,-500.0,0.00014026,2]
[354236865,1740358236122,-500.0,0.00014027,2]
[354236866,1740358236131,-500.0,0.00014027,2]
[354236867,1740358236140,-500.0,0.00014027,2]
[354236868,1740358236150,-500.0,0.00014027,2]
[354236869,1740358236159,-500.0,0.00014027,2]
[354236870,1740358236169,-1930.68,0.00014027,2]
[354236871,1740358236178,-1212.17,0.00014027,2]
[354236872,1740358236187,-500.0,0.00014027,2]
[354236873,1740358236197,-500.0,0.00014027,2]
[354236874,1740358236206,-500.0,0.00014027,2]
[354236875,1740358236215,-500.0,0.00014027,2]
[354236876,1740358236225,-805.55,0.00014027,2]
[354236877,1740358236234,-500.0,0.00014027,2]
[354236878,1740358236243,-500.0,0.00014027,2]
[354236879,1740358236252,-500.0,0.00014027,2]
[354236880,1740358236348,-500.0,0.00014027,2]
[354236881,1740358236358,-500.0,0.00014027,2]
[354236882,1740358236368,-3089.22,0.00014027,2]
[354236883,1740358236377,-226.70181553,0.00014106,2]
[354236884,1740358236386,-500.0,0.00014108,2]
[354236885,1740358236395,-500.0,0.00014109,2]
[354236886,1740358236404,-500.0,0.00014109,2]
[354236887,1740358236414,-500.0,0.00014109,2]
[354236888,1740358236424,-500.0,0.00014109,2]
[354236889,1740358236434,-500.0,0.00014109,2]
[354236890,1740358236444,-1930.68,0.00014109,2]
[354236891,1740358236453,-1212.17,0.00014109,2]
[354236892,1740358236462,-500.0,0.00014109,2]
[354236893,1740358236472,-500.0,0.00014109,2]
[354236894,1740358236481,-500.0,0.00014109,2]
[354236895,1740358236490,-500.0,0.00014109,2]
[354236896,1740358236499,-805.55,0.00014109,2]
[354236897,1740358236509,-500.0,0.00014109,2]
[354236898,1740358236518,-500.0,0.00014109,2]
[354236899,1740358236528,-500.0,0.00014109,2]
[354236900,1740358236538,-500.0,0.00014109,2]
[354236901,1740358236547,-500.0,0.00014109,2]
[354236902,1740358236556,-3089.22,0.00014109,2]
[354236903,1740358236566,-192.0,0.00014127,2]
[354236904,1740358236575,-443.26207656,0.00014139,2]
[354236905,1740358236584,-500.0,0.00014191,2]
[354236906,1740358236594,-500.0,0.00014191,2]
[354236907,1740358236603,-500.0,0.00014191,2]
[354236908,1740358236612,-500.0,0.00014191,2]
[354236909,1740358236622,-500.0,0.00014191,2]
[354236910,1740358236631,-1930.68,0.00014191,2]
[354236911,1740358236640,-1212.17,0.00014191,2]
[354236912,1740358236649,-500.0,0.00014191,2]
[354236913,1740358236658,-500.0,0.00014191,2]
[354236914,1740358236667,-500.0,0.00014191,2]
[354236915,1740358236677,-500.0,0.00014191,2]
[354236916,1740358236686,-646.58285502,0.00014191,2]
[354236925,1740358238540,-500.0,0.00013698,2]
[354236926,1740358238549,-428.3289022,0.00013698,2]
[354236927,1740358238592,-71.6710978,0.00013698,2]
[354236928,1740358238602,-355.72528818,0.00013698,2]
[354236929,1740358238613,-144.27471182,0.00013698,2]
[354236930,1740358238623,-253.62,0.00013698,2]
[354236931,1740358238632,-500.0,0.0001378,2]
[354236932,1740358238641,-160.41455158,0.00013944,2]
[354236935,1740358238651,-509.60277708,0.00013944,2]
[354236938,1740358238660,-607.73811933,0.00013944,2]
[354236940,1740358238669,-500.0,0.00013944,2]
[354236942,1740358238679,-158.96714498,0.00014191,2]
[354236944,1740358238688,-500.0,0.00014191,2]
[354236946,1740358238697,-151.0,0.00014191,2]
[354236948,1740358238706,-500.0,0.00014191,2]
[354236950,1740358238715,-500.0,0.00014191,2]
[354236951,1740358238724,-500.0,0.00014191,2]
[354236952,1740358238733,-500.0,0.00014191,2]
[354236953,1740358238742,-3089.22,0.00014191,2]
[354236954,1740358238752,-500.0,0.00014194,2]
[354236955,1740358238761,-151.0,0.000142,2]
[354236956,1740358238770,-500.0,0.00014272,2]
[354236957,1740358238780,-500.0,0.00014273,2]
[354236958,1740358238789,-500.0,0.00014273,2]
[354236959,1740358238798,-253.958633,0.00014273,2]
[354236960,1740358238807,-253.958633,0.00014273,2]
[354236961,1740358238817,-500.0,0.00014273,2]
[354236962,1740358238826,-500.0,0.00014273,2]
[354236963,1740358238836,-151.0,0.00014273,2]
[354236964,1740358238845,-151.0,0.00014273,2]
[354236965,1740358238855,-500.0,0.00014273,2]
[354236966,1740358238864,-1930.68,0.00014273,2]
[354236967,1740358238873,-257.667722,0.00014273,2]
[354236968,1740358238882,-1212.17,0.00014273,2]
[354236969,1740358238891,-151.0,0.00014273,2]
[354236970,1740358238900,-500.0,0.00014273,2]
[354236971,1740358238909,-500.0,0.00014273,2]
[354236972,1740358238919,-500.0,0.00014273,2]
[354236973,1740358238929,-500.0,0.00014273,2]
[354236974,1740358238938,-805.55,0.00014273,2]
[354236975,1740358238948,-500.0,0.00014273,2]
[354236976,1740358238961,-500.0,0.00014273,2]
[354236977,1740358238970,-500.0,0.00014273,2]
[354236978,1740358238979,-500.0,0.00014273,2]
[354236979,1740358238988,-500.0,0.00014273,2]
[354236980,1740358238997,-3089.22,0.00014273,2]
[354236981,1740358239007,-3000.0,0.00014338,2]
[354236982,1740358239016,-586.9,0.00014355,2]
[354236983,1740358239026,-498.65,0.00014356,2]
[354236984,1740358239036,-500.0,0.00014356,2]
[354236985,1740358239045,-500.0,0.00014356,2]
[354236986,1740358239054,-500.0,0.00014356,2]
[354236987,1740358239063,-500.0,0.00014356,2]
[354236988,1740358239073,-1930.68,0.00014356,2]
[354236989,1740358239082,-1212.17,0.00014356,2]
[354236990,1740358239092,-500.0,0.00014356,2]
[354236991,1740358239101,-500.0,0.00014356,2]
[354236992,1740358239110,-504.04,0.00014356,2]
[354236993,1740358239119,-500.0,0.00014356,2]
[354236994,1740358239129,-805.55,0.00014356,2]
[354236995,1740358239138,-500.0,0.00014356,2]
[354236996,1740358239147,-500.0,0.00014356,2]
[354236997,1740358239156,-500.0,0.00014356,2]
[354236998,1740358239165,-500.0,0.00014356,2]
[354236999,1740358239176,-500.0,0.00014356,2]
[354237000,1740358239185,-3089.22,0.00014356,2]
[354237001,1740358239194,-214.98482315,0.00014377,2]
[354237002,1740358239203,-38980.20807772,0.0001442,2]
[354237003,1740358239212,-151.0,0.0001442,2]
[354237004,1740358239221,-18646.44120615,0.0001443,2]
[354237005,1740358239229,-500.0,0.00014438,2]
[354237006,1740358239238,-500.0,0.00014438,2]
[354237007,1740358239247,-500.0,0.00014438,2]
[354237008,1740358239256,-151.0,0.00014438,2]
[354237009,1740358239265,-151.0,0.00014438,2]
[354237010,1740358239274,-500.0,0.00014438,2]
[354237011,1740358239284,-1930.68,0.00014438,2]
[354237012,1740358239292,-1212.17,0.00014438,2]
[354237013,1740358239302,-151.0,0.00014438,2]
[354237014,1740358239312,-500.0,0.00014438,2]
[354237015,1740358239321,-500.0,0.00014438,2]
[354237016,1740358239331,-500.0,0.00014438,2]
[354237017,1740358239341,-805.55,0.00014438,2]
[354237018,1740358239350,-500.0,0.00014438,2]
[354237019,1740358239359,-500.0,0.00014438,2]
[354237020,1740358239368,-500.0,0.00014438,2]
[354237021,1740358239377,-500.0,0.00014438,2]
[354237022,1740358239386,-422.17694882,0.00014438,2]
[354237023,1740358239399,-200.33305118,0.00014438,2]
[354237024,1740358239408,-3089.22,0.00014438,2]
[354237025,1740358239420,-500.34967792,0.00014473,2]
[354237026,1740358239429,-1319.01,0.000145,2]
[354237027,1740358239438,-53062.50915928,0.000145,2]
[354237330,1740358243797,-3.62623729,0.00013698,2]
[354237334,1740358243832,-496.37376271,0.00013698,2]
[354237336,1740358243841,-500.0,0.00013698,2]
[354237338,1740358243851,-500.0,0.00013698,2]
[354237340,1740358243860,-500.0,0.00013698,2]
[354237342,1740358243869,-500.0,0.00013698,2]
[354237344,1740358243878,-500.0,0.00013698,2]
[354237346,1740358243887,-500.0,0.00013698,2]
[354237348,1740358243896,-500.0,0.00013698,2]
[354237350,1740358243906,-500.0,0.0001378,2]
[354237352,1740358243915,-500.0,0.00013863,2]
[354237354,1740358243925,-500.0,0.00013945,2]
[354237356,1740358243934,-483.21,0.00014027,2]
[354237358,1740358243943,-15991.08045773,0.000145,2]
[354237360,1740358243952,-151.0,0.000145,2]
[354237362,1740358243961,-253.958633,0.000145,2]
[354237364,1740358243971,-253.958633,0.000145,2]
[354237366,1740358243982,-151.0,0.000145,2]
[354237368,1740358243992,-151.0,0.000145,2]
[354237370,1740358244001,-151.0,0.000145,2]
[354237372,1740358244010,-151.0,0.000145,2]
[354237374,1740358244019,-2093.38900905,0.00014517,2]
[354237863,1740358248776,5729.88,0.00019,120]
[354238780,1740358369524,165.317664,9.041e-05,2]
[354238797,1740358910714,300.0,0.00019,120]
[354238840,1740359432172,-500.0,0.00012664,2]
[354238842,1740359432181,-811.15524643,0.00012718,2]
[354238844,1740359432192,-5770.26063228,0.00012718,2]
[354238846,1740359432205,-78.93277089,0.00012718,2]
[354238848,1740359432214,-300.0,0.00013499,2]
[354238850,1740359432223,-3503.6459863,0.000135,2]
[354238852,1740359432232,-158.37857426,0.00013598,2]
[354238854,1740359432241,-172.58809199,0.00013598,2]
[354238856,1740359432250,-500.0,0.00013673,2]
[354238858,1740359432259,-500.0,0.00013673,2]
[354238860,1740359432268,-500.0,0.00013673,2]
[354238862,1740359432277,-434.66238039,0.00013698,2]
[354238864,1740359432289,-65.33761961,0.00013698,2]
[354238866,1740359432298,-500.0,0.00013698,2]
[354238868,1740359432307,-500.0,0.00013698,2]
[354238870,1740359432317,-500.0,0.00013698,2]
[354238872,1740359432326,-501.28874201,0.00013698,2]
[354238874,1740359432335,-236.82992849,0.00013698,2]
[354238877,1740359432347,-263.17007151,0.00013698,2]
[354238879,1740359432356,-500.0,0.00013698,2]
[354238881,1740359432365,-500.0,0.00013698,2]
[354238883,1740359432374,-268.6168816,0.00013698,2]
[354238885,1740359432383,-367.29442336,0.00013698,2]
[354238887,1740359432392,-500.0,0.00013698,2]
[354238889,1740359432401,-500.0,0.00013698,2]
[354238891,1740359432410,-500.0,0.00013698,2]
[354238893,1740359432419,-166.8832579,0.00013698,2]
[354238895,1740359432428,-1000.0,0.00013698,2]
[354238897,1740359432439,-500.0,0.00013698,2]
[354238898,1740359432449,-500.0,0.00013698,2]
[354238901,1740359432459,-500.0,0.00013698,2]
[354238902,1740359432467,-503.13601107,0.00013698,2]
[354238905,1740359432477,-47.55618169,0.00013698,2]
[354238915,1740359437773,-476.96381831,0.00013698,2]
[354238916,1740359437783,-500.0,0.00013698,2]
[354238917,1740359437793,-501.37028032,0.00013698,2]
[354238918,1740359437802,-500.0,0.00013698,2]
[354238919,1740359437811,-500.0,0.00013698,2]
[354238920,1740359437820,-501.46024624,0.00013698,2]
[354238921,1740359437830,-500.0,0.00013698,2]
[354238922,1740359437839,-500.0,0.00013698,2]
[354238923,1740359437848,-550.42829242,0.00013698,2]
[354238924,1740359437858,-500.0,0.00013698,2]
[354238925,1740359437867,-500.0,0.00013698,2]
[354238926,1740359437877,-501.23297831,0.00013698,2]
[354238927,1740359437886,-500.0,0.00013698,2]
[354238928,1740359437896,-528.52187674,0.00013698,2]
[354238929,1740359437905,-500.0,0.00013698,2]
[354238930,1740359437914,-500.55829938,0.00013698,2]
[354238931,1740359437923,-500.0,0.00013698,2]
[354238932,1740359437933,-501.62958145,0.00013698,2]
[354238933,1740359437942,-223.22035049,0.00013698,2]
[354238934,1740359437952,-503.39046479,0.00013698,2]
[354238935,1740359437961,-500.0,0.00013698,2]
[354238936,1740359437970,-500.0,0.00013698,2]
[354238937,1740359437979,-500.0,0.00013698,2]
[354238938,1740359437989,-500.0,0.00013698,2]
[354238939,1740359437998,-502.45896815,0.00013698,2]
[354238940,1740359438007,-295.5279842,0.00013698,2]
[354238941,1740359438017,-500.0,0.00013698,2]
[354238942,1740359438026,-500.0,0.00013698,2]
[354238943,1740359438035,-500.0,0.00013698,2]
[354238944,1740359438044,-500.0,0.00013698,2]
[354238945,1740359438054,-501.66108807,0.00013698,2]
[354238946,1740359438063,-500.0,0.00013698,2]
[354238947,1740359438072,-500.0,0.00013698,2]
[354238948,1740359438082,-500.0,0.00013698,2]
[354238949,1740359438091,-500.0,0.00013698,2]
[354238950,1740359438100,-500.0,0.00013698,2]
[354238951,1740359438110,-500.0,0.00013698,2]
[354238952,1740359438120,-501.41413361,0.00013698,2]
[354238953,1740359438149,-500.0,0.00013698,2]
[354238954,1740359438160,-494.82335043,0.00013698,2]
[354238955,1740359438171,-500.0,0.00013698,2]
[354238956,1740359438181,-386.39192726,0.00013698,2]
[354238957,1740359438192,-500.0,0.00013698,2]
[354238958,1740359438203,-500.0,0.00013698,2]
[354238959,1740359438214,-500.0,0.00013698,2]
[354238960,1740359438224,-500.0,0.00013698,2]
[354238961,1740359438233,-500.0,0.00013698,2]
[354238962,1740359438243,-295.48226437,0.00013698,2]
[354238963,1740359438252,-500.0,0.00013698,2]
[354238964,1740359438262,-500.43624068,0.00013698,2]
[354238965,1740359438272,-500.0,0.00013698,2]
[354238966,1740359438281,-500.0,0.00013698,2]
[354238967,1740359438291,-533.57488558,0.00013698,2]
[354238968,1740359438300,-489.5480248,0.00013698,2]
[354238969,1740359438315,-12.32687277,0.00013698,2]
[354238970,1740359438324,-500.0,0.00013698,2]
[354238971,1740359438333,-500.0,0.00013698,2]
[354238972,1740359438343,-500.0,0.00013698,2]
[354238973,1740359438353,-500.0,0.00013698,2]
[354238974,1740359438362,-341.76509638,0.00013698,2]
[354238975,1740359438371,-500.0,0.00013698,2]
[354238976,1740359438381,-500.0,0.00013698,2]
[354238977,1740359438389,-500.0,0.00013698,2]
[354238978,1740359438398,-500.0,0.00013698,2]
[354238979,1740359438406,-500.0,0.00013698,2]
[354238980,1740359438416,-500.0,0.00013698,2]
[354238981,1740359438425,-582.26072684,0.00013698,2]
[354238982,1740359438436,-500.0,0.00013698,2]
[354238983,1740359438446,-500.0,0.00013698,2]
[354238984,1740359438457,-500.0,0.00013698,2]
[354238985,1740359438466,-500.0,0.00013698,2]
[354238986,1740359438475,-500.0,0.00013698,2]
[354238987,1740359438484,-500.0,0.00013698,2]
[354238988,1740359438494,-500.0,0.00013698,2]
[354238989,1740359438503,-500.0,0.00013698,2]
[354238990,1740359438512,-500.0,0.00013698,2]
[354238991,1740359438521,-500.0,0.00013698,2]
[354238992,1740359438530,-500.0,0.00013698,2]
[354238993,1740359438540,-500.0,0.00013698,2]
[354238994,1740359438549,-508.86164509,0.00013698,2]
[354238995,1740359438558,-500.0,0.00013698,2]
[354238996,1740359438567,-500.0,0.00013698,2]
[354238997,1740359438577,-500.0,0.00013698,2]
[354238998,1740359438586,-501.6073105,0.00013698,2]
[354238999,1740359438595,-501.93593452,0.00013698,2]
[354239000,1740359438604,-500.0,0.00013698,2]
[354239001,1740359438613,-502.43376471,0.00013698,2]
[354239002,1740359438623,-376.64130565,0.00013698,2]
[354239003,1740359438632,-579.56859868,0.00013698,2]
[354239004,1740359438641,-500.0,0.00013698,2]
[354239005,1740359438650,-501.27101766,0.00013698,2]
[354239006,1740359438659,-500.0,0.00013698,2]
[354239007,1740359438668,-502.19955129,0.00013698,2]
[354239008,1740359438677,-500.0,0.00013698,2]
[354239009,1740359438687,-500.0,0.00013698,2]
[354239010,1740359438695,-504.32157966,0.00013698,2]
[354239011,1740359438706,-500.0,0.00013698,2]
[354239012,1740359438715,-500.0,0.00013698,2]
[354239013,1740359438725,-500.0,0.00013698,2]
[354239014,1740359438734,-401.70250829,0.00013698,2]
[354239015,1740359438743,-500.0,0.00013698,2]
[354239016,1740359438752,-500.0,0.00013698,2]
[354239017,1740359438761,-500.0,0.00013698,2]
[354239018,1740359438771,-500.0,0.00013698,2]
[354239019,1740359438780,-500.0,0.00013698,2]
[354239020,1740359438790,-500.0,0.00013698,2]
[354239021,1740359438799,-500.0,0.00013698,2]
[354239022,1740359438809,-500.0,0.00013698,2]
[354239023,1740359438818,-502.07478489,0.00013698,2]
[354239024,1740359438829,-500.0,0.00013698,2]
[354239025,1740359438838,-500.0,0.00013698,2]
[354239026,1740359438848,-500.0,0.00013698,2]
[354239027,1740359438858,-500.0,0.00013698,2]
[354239028,1740359438867,-500.0,0.00013698,2]
[354239029,1740359438877,-500.0,0.00013698,2]
[354239030,1740359438886,-500.0,0.00013698,2]
[354239031,1740359438896,-500.0,0.00013698,2]
[354239032,1740359438906,-500.0,0.00013698,2]
[354239033,1740359438915,-500.0,0.00013698,2]
[354239034,1740359438925,-422.7646701,0.00013698,2]
[354239035,1740359438935,-500.0,0.00013698,2]
[354239036,1740359438945,-500.0,0.00013698,2]
[354239037,1740359438957,-500.0,0.00013698,2]
[354239038,1740359438967,-500.0,0.00013698,2]
[354239039,1740359438976,-500.0,0.00013698,2]
[354239040,1740359438987,-500.0,0.00013698,2]
[354239041,1740359438996,-205.69697058,0.00013698,2]
[354239042,1740359439005,-500.0,0.00013698,2]
[354239043,1740359439015,-511.99619282,0.00013698,2]
[354239044,1740359439024,-500.0,0.00013698,2]
[354239045,1740359439033,-500.0,0.00013698,2]
[354239046,1740359439043,-500.0,0.00013698,2]
[354239047,1740359439052,-500.0,0.00013698,2]
[354239048,1740359439062,-500.0,0.00013698,2]
[354239049,1740359439071,-500.0,0.00013698,2]
[354239050,1740359439081,-500.0,0.00013698,2]
[354239051,1740359439090,-500.0,0.00013698,2]
[354239052,1740359439099,-500.0,0.00013698,2]
[354239053,1740359439110,-500.0,0.00013698,2]
[354239054,1740359439119,-500.0,0.00013698,2]
[354239055,1740359439128,-500.0,0.00013698,2]
[354239056,1740359439138,-500.0,0.00013698,2]
[354239057,1740359439147,-500.0,0.00013698,2]
[354239058,1740359439157,-500.0,0.00013698,2]
[354239059,1740359439166,-500.0,0.00013698,2]
[354239060,1740359439175,-500.36812525,0.00013698,2]
[354239061,1740359439184,-500.0,0.00013698,2]
[354239062,1740359439195,-500.0,0.00013698,2]
[354239063,1740359439205,-500.0,0.00013698,2]
[354239064,1740359439214,-500.0,0.00013698,2]
[354239065,1740359439223,-500.0,0.00013698,2]
[354239066,1740359439232,-500.0,0.00013698,2]
[354239067,1740359439242,-616.52825209,0.00013698,2]
[354239068,1740359439251,-500.0,0.00013698,2]
[354239069,1740359439260,-500.0,0.00013698,2]
[354239070,1740359439269,-500.0,0.00013698,2]
[354239071,1740359439278,-500.0,0.00013698,2]
[354239072,1740359439287,-500.0,0.00013698,2]
[354239073,1740359439296,-500.0,0.00013698,2]
[354239074,1740359439305,-501.56818281,0.00013698,2]
[354239075,1740359439314,-500.0,0.00013698,2]
[354239076,1740359439402,-500.0,0.00013698,2]
[354239077,1740359439413,-500.0,0.00013698,2]
[354239079,1740359439422,-500.0,0.00013698,2]
[354239080,1740359439432,-500.0,0.00013698,2]
[354239081,1740359439445,-500.0,0.00013698,2]
[354239082,1740359439455,-500.0,0.00013698,2]
[354239083,1740359439464,-500.0,0.00013698,2]
[354239084,1740359439474,-512.00120995,0.00013698,2]
[354239085,1740359439486,-500.0,0.00013698,2]
[354239086,1740359439495,-508.81889948,0.00013698,2]
[354239087,1740359439504,-504.43353363,0.00013698,2]
[354239088,1740359439519,-500.0,0.00013698,2]
[354239089,1740359439529,-503.86289512,0.00013698,2]
[354239090,1740359439538,-500.0,0.00013698,2]
[354239091,1740359439548,-500.0,0.00013698,2]
[354239092,1740359439557,-500.0,0.00013698,2]
[354239093,1740359439566,-500.0,0.00013698,2]
[354239094,1740359439575,-500.0,0.00013698,2]
[354239095,1740359439585,-500.0,0.00013698,2]
[354239096,1740359439594,-500.0,0.00013698,2]
[354239097,1740359439605,-500.0,0.00013698,2]
[354239098,1740359439614,-500.0,0.00013698,2]
[354239099,1740359439623,-500.0,0.00013698,2]
[354239100,1740359439632,-500.0,0.00013698,2]
[354239101,1740359439642,-291.25818354,0.00013698,2]
[354239102,1740359439657,-208.74181646,0.00013698,2]
[354239103,1740359439667,-500.0,0.00013698,2]
[354239104,1740359439676,-500.0,0.00013698,2]
[354239105,1740359439685,-500.0,0.00013698,2]
[354239106,1740359439694,-500.0,0.00013698,2]
[354239107,1740359439704,-500.0,0.00013698,2]
[354239108,1740359439713,-500.0,0.00013698,2]